Cogmind - Beta 13 @@@ ROGUE MODE // 2024.04.25 @ 17:07:25 Player: graour Result: Destroyed by 15-OGS(R) with Subdweller Laser Performance ------------- Evolutions (0) 0 Regions Visited (3) 600 Robots Destroyed (24) 120 Value Destroyed (778) 778 Prototype IDs (1) 20 Alien Tech Used (0) 0 Bonus (60) 60 TOTAL SCORE: 1578 Bonus ------- Follower Combat Kills 60 Cogmind --------- Core Integrity 0/250 Matter 196/300 Energy 52/100 System Corruption 0% Temperature Cool (6) Movement Treading (240) Ox1 Location -10/Subcaves Parts ------- > --- POWER (1) -------- (None) > --- PROPULSION (2) --- Improved Treads Improved Treads > --- UTILITY (2) ------ High-capacity Storage Unit Signal Interpreter > --- WEAPON (2) ------- Subdweller Beam Cannon Autogun > --- INVENTORY (20) --- Light Treads Light Treads Improved Heat Sink High-capacity Matter Pod (200) Sensor Array Light Armor Plating Light Armor Plating Splice Drone Bay (6/6) Subdweller Laser Grenade Launcher Makeshift Hammer Explosive Trap Explosive Trap Peak State ------------ > --- POWER ------------ Improved Ion Engine > --- PROPULSION ------- Improved Treads Improved Treads > --- UTILITY ---------- High-capacity Storage Unit Splice Drone Bay > --- WEAPON ----------- Heavy Assault Rifle Autogun > --- INVENTORY -------- Improved Ion Engine Light Nuclear Core Light Treads Light Treads Improved Treads Improved Treads Improved Heat Sink Large Storage Unit High-capacity Matter Pod Sensor Array Signal Interpreter Light Armor Plating Light Armor Plating Assault Rifle Heavy Assault Rifle Autogun Autogun Grenade Launcher Explosive Trap Explosive Trap [Rating: 21] Favorites ----------- Power Improved Ion Engine Engine Improved Ion Engine Power Core Light Nuclear Core Propulsion Improved Treads Treads Improved Treads Wheel Subdweller Monowheel Utility High-capacity Storage Unit Device Sensor Array Storage High-capacity Storage Unit Processor Signal Interpreter Weapon Autogun Energy Cannon Subdweller Beam Cannon Ballistic Gun Autogun Launcher Grenade Launcher Build | -11 -10 -10 -10 ------- Run | Yrd Mat Min Sub Slots Evolved . | . . . . Power . | . . . . Propulsion . | . . . . Utility . | . . . . Weapon . | . . . . Parts Attached 33 | 6 10 6 11 Power 5 | 1 1 . 3 Engine 4 | 1 1 . 2 Core 1 | . . . 1 Reactor . | . . . . Propulsion 8 | 2 2 . 4 Treads 5 | . 2 . 3 Leg . | . . . . Wheel 3 | 2 . . 1 Hover . | . . . . Flight . | . . . . Utility 7 | 1 4 2 . Device 3 | . 2 1 . Storage 3 | 1 2 . . Processor 1 | . . 1 . Hackware . | . . . . Protection . | . . . . Artifact . | . . . . Weapon 13 | 2 3 4 4 Energy Gun . | . . . . Energy Cannon 1 | . . . 1 Ballistic Gun 11 | 2 3 3 3 Ballistic Cannon . | . . . . Launcher 1 | . . 1 . Special Weapon . | . . . . Impact Weapon . | . . . . Slashing Weapon . | . . . . Piercing Weapon . | . . . . Special Melee Weapon . | . . . . Unidentified Prototypes 1 | . . 1 . Parts Lost 9 | . . . 9 Power 2 | . . . 2 Propulsion 3 | . . . 3 Utility . | . . . . Weapon 4 | . . . 4 Highest Loss Streak 4 | . . . 4 To Critical Strikes . | . . . . Average Slot Usage (%) 98 | . 98 100 97 Engine 12 | . 14 14 6 Core 1 | . . . 5 Treads 27 | . 28 28 25 Device 8 | . 12 9 . Storage 14 | . 14 14 14 Processor 4 | . . 4 14 Ballistic Gun 27 | . 28 27 27 Naked Turns . | . . . . Heaviest Build 61 | 11 54 61 53 Greatest Support 46 | 26 46 46 46 Greatest Overweight (x) 2 | . 1 1 2 Average Overweight (x) . | . . 1 1 Largest Inventory Capacity 20 | 8 20 20 20 Average Capacity 17 | 6 13 20 20 Most Carried 20 | 4 10 20 20 Average Carried 15 | 1 8 18 18 Final Capacity 20 | 8 20 20 20 Final Carried 20 | 4 10 20 13 Class Distribution -------------------- 96% | Mutant 3% | Scavenger-Mutant Dominant Class ---------------- Mutant | -10/Materials Mutant | -10/Mines Mutant | -10/Subcaves Resources | -11 -10 -10 -10 ----------- Run | Yrd Mat Min Sub Matter Collected 1152 | 231 247 420 254 Remotely . | . . . . Salvage Created 921 | . 342 253 326 Parts 62 | . 27 17 18 Haulers Intercepted 1 | . 1 . . Recyclers Shooed 2 | . 1 1 . Parts Field Recycled . | . . . . Retrieved Matter . | . . . . Parts Self-Destructed 14 | . . . 14 Prevented . | . . . . Kills | -11 -10 -10 -10 ------- Run | Yrd Mat Min Sub Combat Hostiles Destroyed 19 | . 6 5 8 Guns 16 | . 6 3 7 Cannons 1 | . . . 1 AOE 2 | . . 2 . Classes Destroyed 8 | . 3 3 2 Worker 1 | . . 1 . Hauler 1 | . 1 . . Mechanic 1 | . . 1 . Watcher 2 | . 2 . . Swarmer 1 | . . . 1 Grunt 9 | . 6 3 . Sentry 3 | . . 2 1 Subdweller 6 | . . . 6 Best Kill Streak 3 | . 3 2 2 Combat Bots Only 2 | . 2 2 2 Max Kills in Single Turn 1 | . 1 1 1 Gunslinging . | . . . . Exploded 1 | . . 1 . Melee . | . . . . Uniques/NPCs Destroyed . | . . . . Combat | -11 -10 -10 -10 -------- Run | Yrd Mat Min Sub Hostile Shots Fired 115 | . 16 20 79 Missed 28 | . 3 8 17 Damage Taken 1660 | . 236 159 1265 Core 253 | . 30 36 187 Absorbed by Shields . | . . . . Core Remaining (%) 100 | 100 . . . Volleys Fired 83 | 1 31 16 35 Largest 2 | 2 2 2 2 Hottest 103 | 40 46 53 103 Shots Fired 163 | 2 62 29 70 Gun 158 | 2 62 27 67 Cannon 3 | . . . 3 Launcher 2 | . . 2 . Special . | . . . . Kinetic 158 | 2 62 27 67 Thermal 3 | . . . 3 Explosive 2 | . . 2 . Electromagnetic . | . . . . Robot Hit Streak 16 | 2 9 13 16 Robot Miss Streak 4 | . 4 1 2 Penetration Max . | . . . . Secondary Targets 1 | . . . 1 Max Gunslinging Chain 1 | . . . 1 Shots Hit Robots 111 | 2 32 19 58 Core Hits 45 | . 16 13 16 Critical Kills . | . . . . Critical Parts Destroyed 1 | . . . 1 Critical Strikes 1 | . . . 1 Destroy 1 | . . . 1 Melee Attacks . | . . . . Impact . | . . . . Slashing . | . . . . Piercing . | . . . . Sneak Attacks . | . . . . Combat Hostiles . | . . . . Follow-up Attacks . | . . . . Damage Inflicted 1818 | 22 478 527 791 Guns 1579 | 22 478 342 737 Cannons 54 | . . . 54 Explosions 173 | . . 173 . Melee . | . . . . Ramming 12 | . . 12 . Kinetic 1579 | 22 478 342 737 Thermal 54 | . . . 54 Explosive 173 | . . 173 . Electromagnetic . | . . . . Impact . | . . . . Slashing . | . . . . Piercing . | . . . . Highest Corruption . | . . . . Average Corruption . | . . . . Corruption Purged . | . . . . Corruption Blocked . | . . . . Overload Shots . | . . . . Overflow Damage . | . . . . Projectiles . | . . . . Explosions . | . . . . Melee . | . . . . Knockbacks . | . . . . Impact . | . . . . Kinetic . | . . . . Secondary . | . . . . Self-Inflicted Damage . | . . . . Shots . | . . . . Rammed 2 | . . 2 . Targets Rammed 2 | . . 2 . Kicked . | . . . . Crushed . | . . . . Highest Temperature 255 | . 43 25 255 Average Temperature 27 | . 13 10 91 Received Heat Transfer 717 | . 84 60 573 Effects 1 | . . . 1 Energy Bleed 1 | . . . 1 Siege Activations . | . . . . Robots Corrupted . | . . . . Combat Hostiles . | . . . . Parts Fried . | . . . . Impact Corruptions . | . . . . Robots Melted . | . . . . Combat Hostiles . | . . . . Parts Melted 1 | . . . 1 Heat Transferred 74 | . . . 74 Parts Sabotaged . | . . . . Parts Stolen . | . . . . Parts Stripped . | . . . . Power Chain Reactions . | . . . . Alert | -11 -10 -10 -10 ------- Run | Yrd Mat Min Sub Peak Influence 123 | . 123 104 . Initial . | . . . . Average 28 | . 46 17 . Maximum Alert Level . | . . . . Low Security (%) 100 | 100 100 100 . Level 1 . | . . . . Level 2 . | . . . . Level 3 . | . . . . Level 4 . | . . . . Level 5 . | . . . . High Security . | . . . . Max Security . | . . . . Squads Dispatched 1 | . . 1 . Investigation . | . . . . Extermination . | . . . . Reinforcement . | . . . . Assault 1 | . . 1 . Garrison . | . . . . Intercept . | . . . . Searches Triggered . | . . . . Construction Impeded . | . . . . Haulers Reinforced . | . . . . Active Scanning Responses . | . . . . Cargo Convoy Interrupts . | . . . . Stealth | -11 -10 -10 -10 --------- Run | Yrd Mat Min Sub Distress Signals 1 | . 1 . . Communications Jammed . | . . . . Distress Signals . | . . . . Times Spotted 36 | . 17 10 9 Peak Tracking Total 4 | . 3 4 3 Tactical Retreats 1 | . 1 . . Traps | -11 -10 -10 -10 ------- Run | Yrd Mat Min Sub Traps Triggered 3 | . 3 . . Indirectly . | . . . . Trap Hack Attempts . | . . . . Triggered . | . . . . Disarmed . | . . . . Reprogrammed . | . . . . Reused . | . . . . Traps Extracted . | . . . . Installed . | . . . . Triggered 2 | . . . 2 Most Traps Carried 3 | . . 3 2 Machines | -11 -10 -10 -10 ---------- Run | Yrd Mat Min Sub Machines Disabled . | . . . . Max in Single Turn . | . . . . Machines Repaired . | . . . . Machines Dismantled . | . . . . Machines Sabotaged . | . . . . Overloaded Fab Kills . | . . . . Hacking | -11 -10 -10 -10 --------- Run | Yrd Mat Min Sub Machines Accessed 10 | . 8 2 . Terminals 7 | . 6 1 . Fabricators . | . . . . Repair Stations . | . . . . Recycling Units 2 | . 2 . . Scanalyzers . | . . . . Garrison Access . | . . . . Total Hacks 20 | . 16 4 . Successful 8 | . 7 1 . Failed 12 | . 9 3 . Catastrophic 2 | . 1 1 . Database Lockouts . | . . . . Manual 8 | . 5 3 . Terminals 13 | . 10 3 . Fabricators . | . . . . Repair Stations . | . . . . Recycling Units 6 | . 6 . . Scanalyzers . | . . . . Garrison Access . | . . . . Terminal Hacks 5 | . 4 1 . Robot Analysis 2 | . 2 . . Open Door 1 | . . 1 . Branch Access Points 1 | . 1 . . Locate Traps 1 | . 1 . . Fabricator Hacks . | . . . . Repair Station Hacks . | . . . . Recycling Unit Hacks 3 | . 3 . . Process 1 | . 1 . . Retrieve Matter 1 | . 1 . . Retrieve Components 1 | . 1 . . Scanalyzer . | . . . . Garrison Access Hacks . | . . . . Unauthorized Hacks . | . . . . Terminals . | . . . . Fabricators . | . . . . Repair Stations . | . . . . Recycling Units . | . . . . Scanalyzers . | . . . . Garrison Access . | . . . . Data Cores Recovered . | . . . . Used . | . . . . Hacking Detections 8 | . 7 1 . Full Trace Events 1 | . . 1 . Feedback Events . | . . . . Feedback Blocked . | . . . . Robot Schematics Acquired . | . . . . Robots Built . | . . . . Authchips . | . . . . Time . | . . . . Total Robot Build Rating . | . . . . Part Schematics Acquired . | . . . . Parts Built . | . . . . Authchips . | . . . . Time . | . . . . Total Part Build Rating . | . . . . Parts Repaired . | . . . . Time . | . . . . Parts Recycled . | . . . . Recycled Matter 18 | . 18 . . Retrieved Matter . | . . . . Retrieved Components 6 | . 6 . . Parts Scanalyzed . | . . . . Part Schematics Acquired . | . . . . Parts Damaged . | . . . . Bothacking | -11 -10 -10 -10 ------------ Run | Yrd Mat Min Sub Used RIF Installer . | . . . . Robots Hacked . | . . . . Non-combat . | . . . . Combat . | . . . . Robot Hacks Applied . | . . . . Relay Couplers Released . | . . . . Fabnet Peak Effective % . | . . . . Robots Rewired . | . . . . Allies Hacked . | . . . . Hacks Repelled . | . . . . Allies | -11 -10 -10 -10 -------- Run | Yrd Mat Min Sub Total Allies 1 | . . 1 . Largest Group 1 | . . 1 1 Highest-Rated Group 31 | . . 31 31 Highest-Rated Ally 31 | . . 31 31 Total Orders . | . . . . Ally Attacks 23 | . . 14 9 Total Damage 249 | . . 124 125 Kills 2 | . . 2 . Allies Corrupted . | . . . . Allies Melted . | . . . . Intel | -11 -10 -10 -10 ------- Run | Yrd Mat Min Sub Robot Analysis Total 2 | . 2 . . Derelict Logs Recovered 2 | . . 2 . Drone Launches 6 | . . 6 . Drone Recoveries 6 | . . 6 . Exploration | -11 -10 -10 -10 ------------- Run | Yrd Mat Min Sub Turns Passed 3967 | 49 1241 1981 696 Spaces Moved 1654 | 40 560 791 263 Core 4 | 4 . . . Treads 1559 | . 556 791 212 Legs . | . . . . Wheels 91 | 36 4 . 51 Hover . | . . . . Flight . | . . . . Fastest Speed 50 | 50 90 240 130 Average Speed 214 | 84 187 240 212 Slowest Speed 240 | 90 240 240 240 Overloaded Moves . | . . . . Propulsion Burnouts . | . . . . Robots Hopped . | . . . . Cave-ins Triggered . | . . . . Exploration Rate (%) 52 | 3 87 100 20 Regions Visited 3 Branch Regions 2 Pre-discovered Areas . | . . . . Known Exits Taken 2 | . 1 1 . Unknown Exits Taken 1 | 1 . . . Scrap Searched 1 | . . 1 . Spaces Dug . | . . . . Terrain Destroyed 1 | . . . 1 Melee . | . . . . Projectile 1 | . . . 1 AOE . | . . . . Terrain Rammed . | . . . . Walls Destroyed . | . . . . Machines Disabled . | . . . . Actions | -11 -10 -10 -10 --------- Run | Yrd Mat Min Sub Total 1933 | 50 706 843 334 Wait 111 | . 78 15 18 Move 1651 | 39 559 790 263 Hop . | . . . . Pick Up 30 | 4 12 11 3 Fast Attach 10 | 6 3 . 1 Attach 7 | . . . 7 Detach 2 | . 2 . . Swap 16 | . 7 6 3 Drop 21 | . 14 3 4 Fire 83 | 1 31 16 35 Melee . | . . . . Ram . | . . . . Kick . | . . . . Crush 2 | . . 2 . Escape Stasis . | . . . . Rewire . | . . . . Trap . | . . . . Miscellaneous . | . . . . Route ------- -11/Scrapyard -10/Materials (discovered 3 exits: *Mat x2 / *Min) -10/Mines (discovered 3 exits: *Mat x2 / *Sub) -10/Subcaves History --------- Turn | Location | Event 15 | -11/Scrapyard | Discovered new exit (range 15) 50 | -11/Scrapyard | Entered Materials 311 | -10/Materials | Discovered new exit (range 15) 318 | -10/Materials | Build established: Mutant 656 | -10/Materials | Identified exit to Mines 691 | -10/Materials | Discovered new exit (range 11) 1291 | -10/Materials | Entered Mines 1308 | -10/Mines | Learned Materials trap positions 1606 | -10/Mines | Found the Drone Emporium 1619 | -10/Mines | Found Prototype Device 1627 | -10/Mines | Identified Splice Drone Bay 1685 | -10/Mines | Found a hidden stash of uninstalled traps 1869 | -10/Mines | Learned Materials interactive machine intel 1972 | -10/Mines | Discovered new exit (range 12) 2149 | -10/Mines | Discovered new exit (range 15) 2416 | -10/Mines | Discovered new exit (range 3) 2419 | -10/Mines | Met a Derelict testing a Signal Generator 2466 | -10/Mines | A weapon hastily lodged in a ceiling crevice suddenly fell to the ground 2768 | -10/Mines | Identified exit to Subcaves 2898 | -10/Mines | Identified exit to Materials 3272 | -10/Mines | Entered Subcaves 3272 | -10/Subcaves | Accompanied by 1 ally 3616 | -10/Subcaves | Core integrity fell below 50% 3644 | -10/Subcaves | Lost 3 parts (1p2w) 3646 | -10/Subcaves | Shifting Twisted Machinery released Sub. Laser 3647 | -10/Subcaves | Shifting Twisted Machinery released Sub. Monowheel 3912 | -10/Subcaves | A Subdweller sparked back to life 3912 | -10/Subcaves | A Subdweller sparked back to life 3912 | -10/Subcaves | A Subdweller sparked back to life 3948 | -10/Subcaves | Core integrity fell below 20% 3968 | -10/Subcaves | Destroyed by 15-OGS(R) with Subdweller Laser Last Messages --------------- to move. 03912_ 0G-4G3(R) creaks and sparks as it begins to move. 03912_ 8A-3LB(R) creaks and sparks as it begins to move. 03916_ 8A-3LB(R) affixes Scrap Shield Fragment to Scrap Shield. 03920_ 8A-3LB(R) destroyed. 03920_ Switching to secondary target: 15-OGS(R). 03929_ 0G-4G3(R) affixes Scrap Shield Fragment to Scrap Shield. 03931_ Lgt. Treads destroyed. 03931_ Lgt. Nuclear Core destroyed. 03940_ Assault Rifle destroyed. 03946_ 0G-4G3(R) affixes Scrap Shield Fragment to Scrap Shield. 03949_ Autogun destroyed. 03962_ 0G-4G3(R) suffers critical hit (Destroy). 03962_ Destroyed Disposable Heat Sink. 03962_ 0G-4G3(R) destroyed. Map ----- +----------------------------------------------------+ | ??????????# ##???????????????????? | | ??????????# #????????????????????? | | ??????????## # ##????????????????????? | | ???????????####### #?????????????????????? | | ?????????????????# ##?????????????????????? | | ????????????????## #??????????????????????? | | ????????????????# ##?????????????????????? | | ????????????????## #?????????????????????? | | ????????????????## ##?????????????????????? | | ????????????????# ##?????????????????????? | | ????????????????## #?????????????????????? | | ????????????????## ##?????????????????????? | | ????????????????# ##?????????????????????? | | ????????????????## #?????##??????????????? | | ????????????????# #?####!#??????????????? | | ????????????????## ###&!% ###????????????? | | ????????????????# * & "????????????? | | ????????????????# "& "#????????????? | | ????????????????###### #????????????? | | ?????????????????????## " " #????????????? | | ?????????????????????## ##????????????? | | ??????????????????#### #"###?????????????? | | ????????????????### #?????????????????? | | ????????????????# R##?????????????????? | | ????????????????# # !=##????????????????? | | ????????????????## ###%&@#????????????????? | | ?????????????????# ??##&[ #???????????????? | | ?????????????????# ????# #???????????????? | | ????????????????? ????# #???????????????? | | ????????????????# ????? #???????????????? | | ????????????????#??????# #???????????????? | | ???????????????????????## ##???????????????? | | ????????????????????????# ????????????????? | | ????????????????????????# #????????????????? | | ????????????????????????? #????????????????? | | ????????????????????????? ????????????????? | | ????????????????????????? #????????????????? | | ????????????????????????? ????????????????? | | ????????????????????????? ????????????????? | | ????????????????????????? ????????????????? | | ????????????????????????? ????????????????? | | ???????????????????????????????????????????? | | ???????????????????????????????????????????? | | ???????????????????????????????????????????? | | ???????????????????????????????????????????? | | ???????????????????????????????????????????? | | ???????????????????????????????????????????? | | ???????????????????????????????????????????? | | ???????????????????????????????????????????? | | ???????????????????????????????????????????? | +----------------------------------------------------+ Best States ------------- Heat Dissipation 25 Energy Generation 15 Energy Capacity 265 Matter Stores 300 Matter Capacity 300 Sight Range 16 Robot Scan Range 14 Terrain Scan Density 10 Evasion (%) 42 Recoil Reduction 2 Item Schematics ----------------- None Robot Schematics ------------------ None Fabricated ------------ Nothing Alien Tech Used ----------------- None Achievements -------------- Error 47 Release The Drones! Challenges ------------ None Game ------ Seed LightBeamPerforator Manual? 0 Play Time 00:19:07 Cumulative 45.7 hours Start 2024.04.25 @ 16:48:17 End 2024.04.25 @ 17:07:25 Sessions 1 Manual Loads 0 Difficulty Rogue Special Mode None Game No. 66 Rogue 66 Adventurer 0 Explorer 0 Win Type - Total 0 Types 0/0/0/0/0/0/0/0/0 Lore% 39 Gallery% 48 Achievement% 32 Wizard Run 0 Options --------- Layout 1 ASCII 0 Keyboard 1 Movement Arrows Keybinds 0 Fullscreen 2 Font 24/Smallcaps Map View 50x35 Zoom Use 0% Tactical HUD 1 Map Filters NONE Filters NONE Steam 1 RUN: a50b3e52-06ed-4b3e-9662-766fe5e5c33a